bitfinex/quotes_BTCUSD_20251117
["timestamp","ask_amount","ask_price","bid_price","bid_amount"]
[1763401338645,0.93425232,93368.0,93367.0,65.26184458]
[1763401338880,0.93425232,93368.0,93367.0,63.54245422]
[1763401339086,0.93425232,93368.0,93367.0,62.23371828]
[1763401339260,0.93425232,93368.0,93367.0,61.80387069]
[1763401340112,0.93425232,93368.0,93367.0,61.70550564]
[1763401340802,0.55564435,93368.0,93367.0,61.70550564]
[1763401341018,0.60564435,93368.0,93367.0,61.70550564]
[1763401341483,0.92864435,93368.0,93367.0,61.70550564]
[1763401342368,0.87864435,93368.0,93367.0,61.70550564]
[1763401342575,0.97206309,93368.0,93367.0,61.70550564]
[1763401344165,0.92864435,93368.0,93367.0,61.70550564]
[1763401345450,0.55663435,93368.0,93367.0,61.70550564]
[1763401345664,0.50614435,93368.0,93367.0,61.70550564]
[1763401345867,0.55564435,93368.0,93367.0,61.70550564]
[1763401346069,0.92864435,93368.0,93367.0,61.70550564]
[1763401346185,0.60564435,93368.0,93367.0,61.70550564]
[1763401346559,0.55564435,93368.0,93367.0,61.70550564]
[1763401346903,0.50614435,93368.0,93367.0,61.70550564]
[1763401347625,0.48364397,93368.0,93367.0,61.70550564]
[1763401348032,0.48364397,93368.0,93367.0,61.80159564]
[1763401348211,0.80664397,93368.0,93367.0,61.80159564]
[1763401349072,0.48364397,93368.0,93367.0,61.80159564]
[1763401349295,0.33278497,93368.0,93367.0,61.80159564]
[1763401349501,0.3300612,93368.0,93367.0,61.80159564]
[1763401349721,0.35264447,93368.0,93367.0,61.80159564]
[1763401350171,0.35264447,93368.0,93367.0,61.70550564]
[1763401350591,0.3300612,93368.0,93367.0,61.70550564]
[1763401351219,0.35264644,93368.0,93367.0,61.70550564]
[1763401351444,0.35264644,93368.0,93367.0,61.70650564]
[1763401351648,0.35264644,93368.0,93367.0,61.70550564]
[1763401352111,0.3300612,93368.0,93367.0,61.70650564]
[1763401353053,2.3305512,93368.0,93367.0,61.70650564]
[1763401353253,2.39965805,93368.0,93367.0,61.70650564]
[1763401353471,2.38287961,93368.0,93367.0,61.70650564]
[1763401353873,2.38287961,93368.0,93367.0,61.70609268]
[1763401354966,2.38287961,93368.0,93367.0,61.70509268]
[1763401355166,2.38287961,93368.0,93367.0,61.70609268]
[1763401355579,2.38287961,93368.0,93367.0,61.70509268]
[1763401355805,2.38287961,93368.0,93367.0,61.70609268]
[1763401356038,2.48188961,93368.0,93367.0,61.70609268]
[1763401357680,2.48189159,93368.0,93367.0,61.70609268]
[1763401358626,2.48189159,93368.0,93367.0,61.70509268]
[1763401358845,2.43189159,93368.0,93367.0,61.70609268]
[1763401359050,2.48189159,93368.0,93367.0,61.70609268]
[1763401359250,2.48189159,93368.0,93367.0,61.70509268]
[1763401359472,2.48189159,93368.0,93367.0,61.70609268]
[1763401359908,2.48189159,93368.0,93367.0,61.70509268]
[1763401361928,2.48189159,93368.0,93367.0,61.70609268]
[1763401362695,2.38288159,93368.0,93367.0,61.70609268]
[1763401363126,2.40546052,93368.0,93367.0,61.70609268]
[1763401363326,2.43319384,93368.0,93367.0,61.70609268]
[1763401363476,2.40595052,93368.0,93367.0,61.70609268]
[1763401363877,2.40497052,93368.0,93367.0,61.70609268]
[1763401364076,2.43319689,93368.0,93367.0,61.70609268]
[1763401364533,2.43319689,93368.0,93367.0,61.70509268]
[1763401364736,2.40497052,93368.0,93367.0,61.70509268]
[1763401364898,2.40497052,93368.0,93367.0,61.70609268]
[1763401365255,2.40497052,93368.0,93367.0,61.65658268]
[1763401365256,2.40546052,93368.0,93367.0,61.65658268]
[1763401365398,2.45546052,93368.0,93367.0,61.65658268]
[1763401365999,2.53651082,93368.0,93367.0,61.65658268]
[1763401366213,2.49887926,93368.0,93367.0,61.65558268]
[1763401369423,2.45546052,93368.0,93367.0,61.65558268]
[1763401370050,2.45448717,93368.0,93367.0,61.65009218]
[1763401370251,2.50448717,93368.0,93367.0,61.65009218]
[1763401370520,2.75038717,93368.0,93367.0,61.65009218]
[1763401370726,2.75038717,93368.0,93367.0,61.47521076]
[1763401372087,2.75138717,93368.0,93367.0,61.47521076]
[1763401372988,2.60592317,93368.0,93367.0,58.27974676]
[1763401373186,2.58352517,93368.0,93367.0,58.25207012]
[1763401374336,2.63982817,93368.0,93367.0,58.25189905]
[1763401374560,2.29048117,93368.0,93367.0,58.20475505]
[1763401374764,2.29048117,93368.0,93367.0,58.1996372]
[1763401375007,2.29048117,93368.0,93367.0,58.19213834]
[1763401375214,2.27038234,93368.0,93367.0,58.19213834]
[1763401375423,2.34674115,93368.0,93367.0,58.19213834]
[1763401375756,2.01667995,93368.0,93367.0,58.19213834]
[1763401375956,1.96039345,93368.0,93367.0,58.19213834]
[1763401376162,2.0166811,93368.0,93367.0,58.19213834]
[1763401376370,1.96039345,93368.0,93367.0,58.19213834]
[1763401377828,2.28339345,93368.0,93367.0,58.19213834]
[1763401378642,2.28339345,93368.0,93367.0,58.19188191]
[1763401379493,2.25521145,93368.0,93367.0,58.17095891]
[1763401379690,2.21659945,93368.0,93367.0,58.12508791]
[1763401380545,1.85018071,93368.0,93367.0,58.11218182]
[1763401380748,1.85018071,93368.0,93367.0,58.00167812]
[1763401380955,1.89359945,93368.0,93367.0,58.00167812]
[1763401381268,2.21659945,93368.0,93367.0,58.00167812]
[1763401381663,2.21659945,93368.0,93367.0,57.2762876]
[1763401383286,2.21659945,93368.0,93367.0,57.2504754]
[1763401383484,2.21659945,93368.0,93367.0,57.20311294]
[1763401383890,2.49839945,93368.0,93367.0,53.45202209]
[1763401384245,0.49839945,93368.0,93367.0,47.15189682]
[1763401384452,0.55232173,93368.0,93367.0,42.20433065]
[1763401384660,0.55232173,93368.0,93367.0,41.12382709]
[1763401384661,0.49839945,93368.0,93367.0,41.12382709]
[1763401384846,0.49739945,93368.0,93367.0,40.32169509]
[1763401385104,0.49739945,93368.0,93367.0,36.32413132]
[1763401385318,0.49939945,93368.0,93367.0,32.12318467]
[1763401385511,0.49739945,93368.0,93367.0,30.81406032]
[1763401385759,0.50959391,93368.0,93367.0,30.41919219]
[1763401385939,0.51359391,93368.0,93367.0,30.15714703]
[1763401386153,0.56979697,93368.0,93367.0,28.76427642]
[1763401386518,2.47017517,93368.0,93367.0,28.55402555]
[1763401386702,2.51359391,93368.0,93367.0,28.39127123]
[1763401386945,2.51359391,93368.0,93367.0,28.2841262]
[1763401387152,2.51359391,93368.0,93367.0,27.33300243]
[1763401387352,2.51359391,93368.0,93367.0,26.86594993]
[1763401387779,2.51359391,93368.0,93367.0,26.63957843]
[1763401387971,2.50959391,93368.0,93367.0,26.63957843]
[1763401388175,2.50959391,93368.0,93367.0,25.05944401]
[1763401388385,2.51259391,93368.0,93367.0,24.65544401]
[1763401388569,2.50959391,93368.0,93367.0,23.31822524]
[1763401388882,2.14617517,93368.0,93367.0,22.71222524]
[1763401389097,2.13398071,93368.0,93367.0,22.71222524]
[1763401389518,2.13398071,93368.0,93367.0,22.67350383]
[1763401389713,2.13398071,93368.0,93367.0,22.64478269]
[1763401389714,2.13098071,93368.0,93367.0,22.64478269]
[1763401390534,2.14313538,93368.0,93367.0,22.63187654]
[1763401390738,2.14313538,93368.0,93367.0,22.55470403]
[1763401390966,2.18655412,93368.0,93367.0,22.55470403]
[1763401391146,2.51255412,93368.0,93367.0,21.11218318]
[1763401391361,2.50955412,93368.0,93367.0,21.06236435]
[1763401391800,2.58548391,93368.0,93367.0,21.06236435]
[1763401392020,2.58448391,93368.0,93367.0,21.06236435]
[1763401392277,2.58748391,93368.0,93367.0,21.06236435]
[1763401392508,2.51255412,93368.0,93367.0,21.06236435]
[1763401392717,2.50955412,93368.0,93367.0,21.06236435]
[1763401392928,2.50955412,93368.0,93367.0,21.00894665]
[1763401392929,2.51255412,93368.0,93367.0,21.00894665]
[1763401393150,2.51255412,93368.0,93367.0,19.00202765]
[1763401393366,2.51255412,93368.0,93367.0,18.91977101]
[1763401393589,2.51255412,93368.0,93367.0,18.84781903]
[1763401393833,2.51255412,93368.0,93367.0,18.79402813]
[1763401394047,2.18955412,93368.0,93367.0,18.59732813]
[1763401394257,2.14313538,93368.0,93367.0,18.59732813]
[1763401394465,2.14613538,93368.0,93367.0,18.59732813]
[1763401394667,2.46913538,93368.0,93367.0,18.59732813]
[1763401394866,2.46613538,93368.0,93367.0,18.59732813]
[1763401395110,2.14313538,93368.0,93367.0,18.59732813]
[1763401395319,2.09564538,93368.0,93367.0,18.59732813]
[1763401395524,2.14264538,93368.0,93367.0,18.55860604]
[1763401395728,2.13703747,93368.0,93367.0,18.55860604]
[1763401395928,2.08903747,93368.0,93367.0,18.55860604]
[1763401396130,2.13703747,93368.0,93367.0,18.55860604]
[1763401396762,2.46003747,93368.0,93367.0,18.55860604]
[1763401396965,2.46003747,93368.0,93367.0,18.5048375]
[1763401397348,2.13703747,93368.0,93367.0,18.5048375]
[1763401397545,2.46103747,93368.0,93367.0,18.5048375]
[1763401397750,2.46003747,93368.0,93367.0,18.5048375]
[1763401398121,2.48989747,93368.0,93367.0,18.5048375]
[1763401398773,2.53892484,93368.0,93367.0,18.5048375]
[1763401399029,2.53892484,93368.0,93367.0,18.45106143]
[1763401399195,2.4955061,93368.0,93367.0,18.42524658]
[1763401399638,2.4656461,93368.0,93367.0,18.42524658]
[1763401399841,2.4659461,93368.0,93367.0,18.37147039]
[1763401399996,2.4955061,93368.0,93367.0,18.37147039]
[1763401400419,2.4955061,93368.0,93367.0,18.35856414]
[1763401400617,2.53892484,93368.0,93367.0,18.34565773]
[1763401400899,2.53892484,93368.0,93367.0,18.33517125]
[1763401401274,2.53892484,93368.0,93367.0,17.7263895]
[1763401401477,2.61485463,93368.0,93367.0,17.58433926]
[1763401401686,2.53892484,93368.0,93367.0,17.42245585]
[1763401401837,2.53892484,93368.0,93367.0,17.25731809]
[1763401402063,2.53992484,93368.0,93367.0,17.23983735]
[1763401402240,2.53892484,93368.0,93367.0,17.16453568]
[1763401402669,2.54192484,93368.0,93367.0,17.16453568]
[1763401402999,2.54192484,93368.0,93367.0,17.11075115]
[1763401403189,2.54192484,93368.0,93367.0,17.03545278]
[1763401403350,2.3599803,93368.0,93367.0,17.02254449]
[1763401403551,2.39223838,93368.0,93367.0,17.0096363]
[1763401404005,2.38923838,93368.0,93367.0,17.0096363]
[1763401404148,2.39123838,93368.0,93367.0,16.9343385]
[1763401404557,2.39123838,93368.0,93367.0,16.90852195]
[1763401404991,2.39123838,93368.0,93367.0,16.37037745]
[1763401405194,0.49830012,93368.0,93367.0,15.98612405]
[1763401405397,0.49830012,93368.0,93367.0,15.59611505]
[1763401405652,0.49830012,93368.0,93367.0,15.39364153]
[1763401405828,0.49830012,93368.0,93367.0,15.33984972]
[1763401406082,0.49830012,93368.0,93367.0,14.46280228]
[1763401406245,2.49830012,93368.0,93367.0,14.38749376]
[1763401406446,0.57335248,93368.0,93367.0,13.90390463]
[1763401406666,0.49830012,93368.0,93367.0,13.75463373]
[1763401406905,0.49630012,93368.0,93367.0,12.34959874]
[1763401407140,0.49630012,93368.0,93367.0,11.84469302]
[1763401407141,0.5713527,93368.0,93367.0,11.84469302]
[1763401407313,0.31119354,93368.0,93367.0,10.81866135]
[1763401407517,0.43623946,93368.0,93367.0,10.3055449]
[1763401407714,0.36119354,93368.0,93367.0,9.61016106]
[1763401407918,0.36119354,93368.0,93367.0,9.53786438]
[1763401407919,2.37310162,93368.0,93367.0,9.53786438]
[1763401408122,2.37310162,93368.0,93367.0,9.36231936]
[1763401408328,2.37310162,93368.0,93367.0,9.280803]
[1763401408528,2.37310162,93368.0,93367.0,8.32610245]
[1763401408915,2.37310162,93368.0,93367.0,8.2008848]
[1763401409147,2.37310162,93368.0,93367.0,8.14186536]
[1763401409357,2.37310162,93368.0,93367.0,5.29815926]
[1763401409783,2.37310162,93368.0,93367.0,5.23913982]
[1763401410256,2.37310162,93368.0,93367.0,5.16680793]
[1763401410464,2.37010162,93368.0,93367.0,5.15389682]
[1763401410681,2.32668288,93368.0,93367.0,5.0886855]
[1763401410906,2.13263479,93368.0,93367.0,5.01162765]
[1763401411118,2.13263479,93368.0,93367.0,4.75840523]
[1763401411563,2.13263479,93368.0,93367.0,4.67126868]
[1763401411773,2.45263479,93368.0,93367.0,4.67126868]
[1763401411983,2.45563479,93368.0,93367.0,4.54217786]
[1763401412203,2.12963479,93368.0,93367.0,4.52469681]
[1763401412414,2.49605353,93368.0,93367.0,4.52469681]
[1763401412654,2.49605353,93368.0,93367.0,4.49887836]
[1763401413091,2.49605353,93368.0,93367.0,4.42357222]
[1763401413306,2.59013243,93368.0,93367.0,4.21248787]
[1763401413539,2.49605353,93368.0,93367.0,4.16085031]
[1763401413757,2.59313243,93368.0,93367.0,4.12211958]
[1763401413973,2.59013243,93368.0,93367.0,3.92499371]
[1763401414186,2.49905353,93368.0,93367.0,2.89316521]
[1763401414671,2.49605353,93368.0,93367.0,2.89316521]
[1763401414918,2.49905353,93368.0,93367.0,2.83937281]
[1763401415185,2.49605353,93368.0,93367.0,2.75764808]
[1763401415411,2.49605353,93368.0,93367.0,2.68962628]
[1763401415637,2.55297581,93368.0,93367.0,2.68962628]
[1763401416096,2.49905353,93368.0,93367.0,2.55530157]
[1763401416534,2.49905353,93368.0,93367.0,2.49628213]
[1763401416770,2.49605353,93368.0,93367.0,2.48928901]
[1763401416991,2.49605353,93368.0,93367.0,2.3415414]
[1763401417210,0.49805353,93368.0,93367.0,1.77138553]
[1763401417466,0.49805353,93368.0,93367.0,0.74080451]
[1763401417687,0.49805353,93368.0,93367.0,0.11854878]
[1763401417906,0.49605353,93368.0,93367.0,0.03790881]
[1763401418126,0.49605353,93368.0,93367.0,0.03290881]
[1763401418342,0.09341874,93363.0,93362.0,1e-08]
[1763401418558,2.13338474,93341.0,93340.0,0.001043]
[1763401418776,2.17597604,93341.0,93340.0,0.001043]
[1763401418994,2.11966474,93338.0,93337.0,0.13571735]
[1763401419211,2.16225604,93338.0,93337.0,0.13571735]
[1763401419436,2.16225604,93338.0,93337.0,0.1228173]
[1763401419437,2.21140604,93338.0,93337.0,0.1228173]
[1763401419650,2.21140604,93338.0,93337.0,0.04533912]
[1763401419870,0.00049,93334.0,93333.0,0.02128625]
[1763401420074,2.13446269,93334.0,93333.0,0.02128625]
[1763401420282,2.20596874,93334.0,93333.0,0.02128625]
[1763401420407,2.16255,93334.0,93333.0,9.9814856]
[1763401420811,2.16255,93334.0,93333.0,9.82895121]
[1763401421368,2.16255,93334.0,93333.0,9.74178865]
[1763401421609,2.16455,93334.0,93333.0,9.74178865]
[1763401421823,2.41045,93334.0,93333.0,9.74178865]
[1763401422029,2.41045,93334.0,93333.0,9.66646315]
[1763401422866,2.40845,93334.0,93333.0,9.59113763]
[1763401423313,2.41045,93334.0,93333.0,9.55288873]
[1763401423858,2.41045,93334.0,93333.0,9.42375811]
[1763401424053,2.16455,93334.0,93333.0,9.42375811]
[1763401424511,2.16455,93334.0,93333.0,9.41745347]
[1763401424918,2.16455,93334.0,93333.0,9.34212623]
[1763401425488,2.16455,93334.0,93333.0,9.30339004]
[1763401425690,2.20796874,93334.0,93333.0,8.85406255]
[1763401425884,2.20796874,93334.0,93333.0,8.77489067]
[1763401426296,2.20796874,93334.0,93333.0,8.46324289]
[1763401426887,2.20796874,93334.0,93333.0,8.40943732]
[1763401427346,2.20796874,93334.0,93333.0,8.40613482]
[1763401427988,2.20796874,93334.0,93333.0,8.33080672]
[1763401429916,2.20796874,93334.0,93333.0,8.27700191]
[1763401430437,2.20796874,93334.0,93333.0,8.26408861]
[1763401430669,2.20796874,93334.0,93333.0,8.25117493]
[1763401430949,2.20796874,93334.0,93333.0,8.24068255]
[1763401431131,2.20796874,93334.0,93333.0,8.16535197]
[1763401431403,2.19314188,93334.0,93333.0,7.92837848]
[1763401431603,2.11821774,93334.0,93333.0,7.92837848]
[1763401431843,2.11821774,93334.0,93333.0,7.87026777]
[1763401432046,2.19314188,93334.0,93333.0,7.87026777]
[1763401432250,2.11821774,93334.0,93333.0,7.86535963]
[1763401432714,1.48678574,93334.0,93333.0,5.92816563]
[1763401433017,1.48478574,93334.0,93333.0,5.86873784]
[1763401433233,1.48778574,93334.0,93333.0,5.86873784]
[1763401433438,1.48478574,93334.0,93333.0,5.86199929]
[1763401433612,1.48478574,93334.0,93333.0,5.84908468]
[1763401433876,1.17039864,93334.0,93333.0,5.84908468]
[1763401434101,1.16739864,93334.0,93333.0,5.84908468]
[1763401434483,1.17039864,93334.0,93333.0,5.84908468]
[1763401435129,1.17039864,93334.0,93333.0,5.79530909]
[1763401435261,1.17041149,93334.0,93333.0,5.79530909]
[1763401435676,1.49341149,93334.0,93333.0,5.79530909]
[1763401435913,1.49041149,93334.0,93333.0,5.7414977]
[1763401436116,1.49041149,93334.0,93333.0,5.66616175]
[1763401436316,1.49341149,93334.0,93333.0,5.5677967]
[1763401436539,1.49341149,93334.0,93333.0,4.81096547]
[1763401436939,1.49341149,93334.0,93333.0,4.71100097]
[1763401437141,1.49341149,93334.0,93333.0,4.63566138]
[1763401437361,1.49341149,93334.0,93333.0,4.51650371]
[1763401437558,1.49341149,93334.0,93333.0,4.46026808]
[1763401437767,1.49341149,93334.0,93333.0,4.27729623]
[1763401437983,1.49341149,93334.0,93333.0,4.22359721]
[1763401438135,1.49341149,93334.0,93333.0,4.14825747]
[1763401438359,1.49341149,93334.0,93333.0,3.60301093]
[1763401438568,1.49341149,93334.0,93333.0,3.50666012]
[1763401438967,1.49341149,93334.0,93333.0,3.45284319]
[1763401439169,1.49341149,93334.0,93333.0,3.37749948]
[1763401439388,1.49341149,93334.0,93333.0,3.35166735]
[1763401440082,1.49341149,93334.0,93333.0,3.23476335]
[1763401440342,1.49341149,93334.0,93333.0,3.15942717]
[1763401440487,1.49341149,93334.0,93333.0,3.1465124]
[1763401440675,1.4990184,93334.0,93333.0,3.1335975]
[1763401440873,1.4990184,93334.0,93333.0,3.12310415]
[1763401441080,1.4990184,93334.0,93333.0,2.37001503]
[1763401441284,1.4990184,93334.0,93333.0,2.29467796]
[1763401441484,1.45559966,93334.0,93333.0,2.20749914]
[1763401441700,1.13259966,93334.0,93333.0,2.20749914]
[1763401441912,1.45559966,93334.0,93333.0,2.15368614]
[1763401442138,21.45559966,93334.0,93333.0,2.15368614]
[1763401442377,21.43309076,93334.0,93333.0,2.08638345]
[1763401442587,21.5050664,93334.0,93333.0,2.03326999]
[1763401442793,21.42447786,93334.0,93333.0,2.02765696]
[1763401443009,21.4698966,93334.0,93333.0,2.02765696]
[1763401443216,21.4678966,93334.0,93333.0,1.95231491]
[1763401443459,21.4708966,93334.0,93333.0,1.88503755]
[1763401443658,21.4708966,93334.0,93333.0,1.84629022]
[1763401443886,21.47350976,93334.0,93333.0,1.82618666]
[1763401444092,21.47350976,93334.0,93320.0,0.218643]
[1763401444093,2.08582,93321.0,93320.0,0.0772582]
[1763401444329,2.48209669,93321.0,93320.0,0.03854199]
[1763401444554,2.53110669,93321.0,93320.0,0.03854199]
[1763401444964,2.53110669,93321.0,93300.0,0.02268772]
[1763401444965,2.37349,93301.0,93300.0,0.02268772]
[1763401445196,0.09437,93277.0,93276.0,0.16628804]
[1763401445418,2.46972833,93277.0,93276.0,0.16628804]
[1763401445652,2.50200709,93277.0,93276.0,0.16628804]
[1763401445860,2.53062271,93277.0,93276.0,0.16628804]
[1763401446118,2.5310609,93277.0,93276.0,0.09094256]
[1763401446325,2.50293528,93277.0,93276.0,0.09094256]
[1763401446530,2.50244528,93277.0,93276.0,0.09094256]
[1763401446746,2.53107028,93277.0,93276.0,0.09094256]
[1763401446931,2.53207028,93277.0,93276.0,0.09094256]
[1763401447166,2.50393528,93277.0,93276.0,0.01559845]
[1763401447385,0.323,93276.0,93265.0,71.06159836]
[1763401447624,2.45293528,93277.0,93265.0,71.06159836]
[1763401447625,0.05,93266.0,93265.0,71.06159836]
[1763401447784,0.07985795,93266.0,93265.0,71.06159836]
[1763401447989,0.07985795,93266.0,93265.0,71.00777915]
[1763401448197,0.07985795,93266.0,93265.0,70.93243225]
[1763401448391,0.42535833,93266.0,93265.0,70.93243225]
[1763401449243,0.42535833,93266.0,93265.0,70.85708531]
[1763401449640,0.42535833,93266.0,93265.0,70.81833617]
[1763401450242,0.42535833,93266.0,93265.0,70.74299109]
[1763401450460,0.4253635,93266.0,93265.0,70.73007444]
[1763401450787,0.4253635,93266.0,93265.0,70.71908626]
[1763401450997,0.4253635,93266.0,93265.0,70.66526684]
[1763401451205,0.4253635,93266.0,93265.0,70.58991963]
[1763401452272,0.4253635,93266.0,93265.0,70.51457306]
[1763401452670,0.40286312,93266.0,93265.0,50.51457306]
[1763401452870,0.35286312,93266.0,93265.0,50.56427306]
[1763401453072,0.40286312,93266.0,93265.0,50.65702306]
[1763401453279,0.40286312,93266.0,93265.0,50.56427306]
[1763401453469,0.40286312,93266.0,93265.0,50.51457306]
[1763401453694,0.40286312,93266.0,93265.0,50.48892721]
[1763401454072,0.40286312,93266.0,93265.0,50.43511049]
[1763401454296,0.40286312,93266.0,93265.0,50.43465599]
[1763401454512,0.42537269,93266.0,93265.0,50.38495599]
[1763401454728,0.42537269,93266.0,93265.0,50.38507498]
[1763401454729,0.40286312,93266.0,93265.0,50.38507498]
[1763401455155,0.40286312,93266.0,93265.0,50.3097243]
[1763401455156,2.48670798,93266.0,93265.0,50.3097243]
[1763401455350,2.46899633,93266.0,93265.0,50.28338862]
[1763401455566,0.51899633,93266.0,93265.0,49.33383227]
[1763401455748,0.55649697,93266.0,93265.0,45.0711539]
[1763401455945,0.51899633,93266.0,93265.0,42.52815764]
[1763401456151,0.46899633,93266.0,93265.0,40.04876058]
[1763401456361,0.46899633,93266.0,93265.0,39.64476058]
[1763401456362,0.51999633,93266.0,93265.0,39.64476058]
[1763401456585,0.51899633,93266.0,93265.0,38.62819758]
[1763401456794,0.51899633,93266.0,93265.0,38.31324558]
[1763401456994,2.52299633,93266.0,93265.0,38.25939578]
[1763401457196,2.52299633,93266.0,93265.0,38.1840064]
[1763401457408,0.51899633,93266.0,93265.0,37.8813134]
[1763401457612,0.52399633,93266.0,93265.0,37.0268314]
[1763401457820,0.52399633,93266.0,93265.0,36.12868442]
[1763401458189,1.63139633,93266.0,93265.0,35.01725542]
[1763401458403,1.74459633,93266.0,93265.0,32.88786565]
[1763401458614,1.74459633,93266.0,93265.0,29.97360234]
[1763401458826,1.82755056,93266.0,93265.0,29.46372302]
[1763401459042,1.82755056,93266.0,93265.0,27.01033535]
[1763401459254,1.82755056,93266.0,93265.0,25.43161876]
[1763401459255,1.82255056,93266.0,93265.0,25.43161876]
[1763401459466,1.81278269,93266.0,93265.0,23.13804613]
[1763401459694,1.79527373,93266.0,93265.0,23.10792103]
[1763401459914,1.79027373,93266.0,93265.0,21.10792103]
[1763401460133,1.79027373,93266.0,93265.0,19.54509467]
[1763401460358,1.79527373,93266.0,93265.0,17.43730994]
[1763401460577,1.79027373,93266.0,93265.0,15.11244058]
[1763401460798,1.79027373,93266.0,93265.0,14.96526982]
[1763401461026,1.80680927,93266.0,93265.0,13.90836628]
[1763401461342,1.80180927,93266.0,93265.0,11.87460377]
[1763401461421,1.80180927,93266.0,93265.0,9.74477961]
[1763401461422,1.89430496,93266.0,93265.0,9.74477961]
[1763401461629,1.80180927,93266.0,93265.0,8.18314037]
[1763401461853,2.8623733,93266.0,93265.0,6.04057079]
[1763401462066,2.8623733,93266.0,93265.0,3.17625633]
[1763401462277,2.8623733,93266.0,93265.0,1.40490539]
[1763401462489,2.8623733,93266.0,93200.0,0.23069077]
[1763401462490,0.36641874,93209.0,93203.0,70.96135268]
[1763401462707,2.52961874,93204.0,93203.0,70.56638723]
[1763401462915,0.54971399,93204.0,93203.0,69.45672923]
[1763401463143,1.89518802,93204.0,93203.0,69.09200161]
[1763401463375,3.34160399,93204.0,93203.0,68.95001479]
[1763401463579,3.34160399,93204.0,93203.0,68.91021565]
[1763401463580,3.05228525,93204.0,93203.0,68.91021565]
[1763401463786,3.09614164,93204.0,93203.0,68.91021565]
[1763401463997,3.10114164,93204.0,93203.0,68.91021565]
[1763401464222,3.1527229,93204.0,93203.0,68.86465371]
[1763401464441,3.1527229,93204.0,93203.0,68.72178555]
[1763401465112,23.1527229,93204.0,93203.0,68.55783919]
[1763401465321,23.1527229,93204.0,93203.0,68.29103756]
[1763401465322,23.19614164,93204.0,93203.0,68.29103756]
[1763401465530,23.19614164,93204.0,93203.0,68.19282295]
[1763401465531,23.14614164,93204.0,93203.0,68.19282295]
[1763401465739,21.54935164,93204.0,93203.0,66.41567917]
[1763401465965,23.54435164,93204.0,93203.0,66.1417334]
[1763401466177,23.61769051,93204.0,93203.0,66.08779725]
[1763401466403,23.54935164,93204.0,93203.0,65.2360852]
[1763401466603,23.54435164,93204.0,93203.0,65.2360852]
[1763401466818,23.34289166,93204.0,93203.0,65.22539913]
[1763401467045,23.39789166,93204.0,93203.0,65.22539913]
[1763401467517,23.39789166,93204.0,93203.0,65.03357078]
[1763401467741,23.39789166,93204.0,93203.0,64.97818717]
[1763401467944,23.39789166,93204.0,93203.0,64.9243058]
[1763401468155,23.39789166,93204.0,93203.0,64.83182118]
[1763401468370,23.39789166,93204.0,93203.0,64.43511132]
[1763401468578,23.39789166,93204.0,93203.0,63.73043144]
[1763401468782,23.39789166,93204.0,93203.0,60.31168944]
[1763401468783,23.45270613,93204.0,93203.0,60.31168944]
[1763401469030,23.45270613,93204.0,93203.0,60.24589382]
[1763401469031,23.39789166,93204.0,93203.0,60.24589382]
[1763401469242,23.39789166,93204.0,93203.0,60.21121468]
[1763401469444,23.39789166,93204.0,93203.0,60.01594557]
[1763401469654,23.39289166,93204.0,93203.0,60.0074201]
[1763401469854,23.39289166,93204.0,93203.0,59.99892597]
[1763401470060,23.39789166,93204.0,93203.0,59.99892597]
[1763401470415,23.39289166,93204.0,93203.0,59.78948642]
[1763401470680,23.39789166,93204.0,93203.0,59.45654194]
[1763401470896,23.39789166,93204.0,93203.0,59.44359745]
[1763401471096,23.42601422,93204.0,93203.0,59.34802656]
[1763401471303,23.42601422,93204.0,93203.0,59.32211945]
[1763401471475,23.53921422,93204.0,93203.0,58.98714317]
[1763401471784,22.71857622,93204.0,93203.0,54.61648403]
[1763401471989,23.78102161,93204.0,93203.0,53.91758355]
[1763401472196,23.78102161,93204.0,93203.0,53.79388479]
[1763401472433,24.60165961,93204.0,93203.0,53.50528479]
[1763401472682,23.44260422,93204.0,93203.0,51.8489163]
[1763401472889,23.42601422,93204.0,93203.0,50.07550382]
[1763401473101,23.47568702,93204.0,93203.0,48.35222634]
[1763401473328,23.42101422,93204.0,93203.0,46.54796646]
[1763401473549,23.42101422,93204.0,93203.0,44.40854235]
[1763401473550,23.53921422,93204.0,93203.0,44.40854235]
[1763401473766,23.53421422,93204.0,93203.0,43.56604871]
[1763401474010,23.2494742,93204.0,93203.0,43.46761775]
[1763401474239,23.2494742,93204.0,93203.0,43.21740815]
[1763401474466,23.20605546,93204.0,93203.0,43.07069664]
[1763401474700,23.10605546,93204.0,93203.0,42.90896346]
[1763401475128,23.21925546,93204.0,93203.0,42.7550655]
[1763401475260,23.2626742,93204.0,93203.0,42.6378763]
[1763401475460,23.2626742,93204.0,93203.0,42.46623671]
[1763401475461,23.3676742,93204.0,93203.0,42.46623671]
[1763401475661,23.3626742,93204.0,93203.0,42.41470377]
[1763401475865,23.31925546,93204.0,93203.0,42.41470377]
[1763401476062,23.32425546,93204.0,93203.0,42.3823572]
[1763401476550,23.31925546,93204.0,93203.0,42.25287946]
[1763401476734,21.1961329,93204.0,93203.0,42.22699964]
[1763401476935,21.1911329,93204.0,93203.0,42.12703514]
[1763401477152,20.0705329,93204.0,93203.0,42.07328634]
[1763401477336,20.0755329,93204.0,93203.0,42.07328634]
[1763401477546,20.0755329,93204.0,93203.0,41.8978643]
[1763401478107,20.0755329,93204.0,93203.0,41.84397109]
[1763401478750,20.0705329,93204.0,93203.0,41.76852732]
[1763401478973,20.0755329,93204.0,93203.0,41.76852732]
[1763401479184,20.0662637,93204.0,93203.0,41.76852732]
[1763401479620,20.0662637,93204.0,93203.0,41.62844674]
[1763401479854,20.0612637,93204.0,93203.0,41.62844674]
[1763401480057,20.0642637,93204.0,93203.0,41.62844674]
[1763401480269,20.04885407,93204.0,93203.0,41.62844674]
[1763401480515,20.04121817,93204.0,93203.0,41.61551903]
[1763401480747,20.04321817,93204.0,93203.0,41.54010769]
[1763401480960,20.04321817,93204.0,93203.0,41.52718017]
[1763401481165,20.04321817,93204.0,93203.0,41.33851329]
[1763401481810,20.04321817,93204.0,93203.0,41.26310253]
[1763401482050,20.04121817,93204.0,93203.0,41.26310253]
[1763401482263,20.04321817,93204.0,93203.0,41.26310253]
[1763401482477,20.36421817,93204.0,93203.0,41.26310253]
[1763401482708,20.36421817,93204.0,93203.0,41.18769139]
[1763401482923,20.36521817,93204.0,93203.0,41.18769139]
[1763401483144,20.36421817,93204.0,93203.0,41.15727198]
[1763401483579,20.36521817,93204.0,93203.0,41.13141449]
[1763401483789,20.36421817,93204.0,93203.0,41.05598631]
[1763401484181,20.36421817,93204.0,93203.0,41.0021042]
[1763401484431,20.36421817,93204.0,93203.0,40.99855978]
[1763401484641,20.36421817,93204.0,93203.0,40.9726973]
[1763401484854,20.36421817,93204.0,93203.0,40.89685344]
[1763401485069,20.36621817,93204.0,93203.0,40.89685344]
[1763401485494,20.36421817,93204.0,93203.0,40.89685344]
[1763401485708,20.36721817,93204.0,93203.0,40.76727778]
[1763401486424,20.36421817,93204.0,93203.0,40.76727778]
[1763401486667,20.36421817,93204.0,93203.0,40.69183645]
[1763401486867,20.36721817,93204.0,93203.0,40.69183645]
[1763401487067,20.36721817,93204.0,93203.0,40.63795402]